[Event "Late-Titled-Tuesday-Blitz-September-05-2023"]
[Site "Chess.com"]
[Date "2023.09.05"]
[Round "2"]
[White "Bigfish1995"]
[Black "JG-17"]
[Result "1-0"]
[WhiteElo "3079"]
[BlackElo "2607"]
[TimeControl "180+1"]
[EndTime "14:17:15 PDT"]
[Termination "Bigfish1995 won by resignation"]

1. a3 {[%clk 0:03:00.9]} 1... g6 {[%clk 0:02:58.3]} 2. h4 {[%clk 0:03:00.1]}
2... h5 {[%clk 0:02:57.9]} 3. d4 {[%clk 0:02:58.8]} 3... Bg7 {[%clk 0:02:58.1]}
4. Nf3 {[%clk 0:02:50.6]} 4... Nf6 {[%clk 0:02:58.1]} 5. Bf4 {[%clk 0:02:50.4]}
5... d5 {[%clk 0:02:57.8]} 6. e3 {[%clk 0:02:50.3]} 6... O-O {[%clk 0:02:57.7]}
7. c4 {[%clk 0:02:50]} 7... c6 {[%clk 0:02:57.6]} 8. Nc3 {[%clk 0:02:49.7]} 8...
Bf5 {[%clk 0:02:54.7]} 9. Qb3 {[%clk 0:02:46.6]} 9... Qb6 {[%clk 0:02:51.5]} 10.
Qxb6 {[%clk 0:02:45.7]} 10... axb6 {[%clk 0:02:52.4]} 11. cxd5 {[%clk
0:02:45.7]} 11... Nxd5 {[%clk 0:02:40.7]} 12. Nxd5 {[%clk 0:02:45]} 12... cxd5
{[%clk 0:02:41.6]} 13. Rc1 {[%clk 0:02:43.8]} 13... Nc6 {[%clk 0:02:40.9]} 14.
Bb5 {[%clk 0:02:44.3]} 14... Rac8 {[%clk 0:02:19.9]} 15. Ke2 {[%clk 0:02:39]}
15... Rfd8 {[%clk 0:02:03.4]} 16. Rc3 {[%clk 0:02:27.2]} 16... Na7 {[%clk
0:01:59.7]} 17. Bd3 {[%clk 0:02:23.6]} 17... Bxd3+ {[%clk 0:01:58.6]} 18. Kxd3
{[%clk 0:02:23]} 18... Rc6 {[%clk 0:01:46.9]} 19. Bc7 {[%clk 0:02:10.3]} 19...
Rc8 {[%clk 0:01:45.3]} 20. Rxc6 {[%clk 0:02:08.3]} 20... Nxc6 {[%clk 0:01:40.3]}
21. Bxb6 {[%clk 0:02:08.6]} 21... e5 {[%clk 0:01:27.7]} 22. dxe5 {[%clk
0:02:07.9]} 22... Bxe5 {[%clk 0:01:20.9]} 23. Bd4 {[%clk 0:02:07.3]} 23... Bxd4
{[%clk 0:01:17.5]} 24. exd4 {[%clk 0:02:04.9]} 24... Kf8 {[%clk 0:01:13.3]} 25.
Re1 {[%clk 0:01:59]} 25... Re8 {[%clk 0:01:10.3]} 26. Rc1 {[%clk 0:01:52]} 26...
Ke7 {[%clk 0:01:09]} 27. Ne5 {[%clk 0:01:49]} 27... Rc8 {[%clk 0:00:40.5]} 28.
Kd2 {[%clk 0:01:48]} 28... f6 {[%clk 0:00:34.8]} 29. Nxg6+ {[%clk 0:01:42.4]}
29... Kd6 {[%clk 0:00:35.1]} 30. Nf4 {[%clk 0:01:41.2]} 30... Rg8 {[%clk
0:00:33.2]} 31. Rc5 {[%clk 0:01:38]} 31... Ne7 {[%clk 0:00:24.1]} 32. g3 {[%clk
0:01:37.5]} 32... Rg4 {[%clk 0:00:22.2]} 33. Rb5 {[%clk 0:01:31.2]} 33... Kc6
{[%clk 0:00:21.8]} 34. a4 {[%clk 0:01:30.9]} 34... Nf5 {[%clk 0:00:19.5]} 35.
Rc5+ {[%clk 0:01:29.4]} 35... Kb6 {[%clk 0:00:15.7]} 36. Rxd5 {[%clk 0:01:27.3]}
36... Nxh4 {[%clk 0:00:13.7]} 37. Rxh5 {[%clk 0:01:25.2]} 37... Nf3+ {[%clk
0:00:13]} 38. Ke3 {[%clk 0:01:24.9]} 38... Ne1 {[%clk 0:00:12.5]} 39. Rc5 {[%clk
0:01:21.1]} 39... Rg7 {[%clk 0:00:08.2]} 40. a5+ {[%clk 0:01:19.7]} 40... Ka6
{[%clk 0:00:07.8]} 41. d5 {[%clk 0:01:18.9]} 41... Re7+ {[%clk 0:00:07.2]} 42.
Ne6 {[%clk 0:01:19]} 42... Ng2+ {[%clk 0:00:06.8]} 43. Kf3 {[%clk 0:01:18.7]}
43... Ne1+ {[%clk 0:00:07]} 44. Ke4 {[%clk 0:01:18.6]} 44... b6 {[%clk
0:00:04.8]} 45. axb6 {[%clk 0:01:17.5]} 45... Kxb6 {[%clk 0:00:05.7]} 46. Rc1
{[%clk 0:01:17.2]} 46... Ng2 {[%clk 0:00:05.6]} 47. Rg1 {[%clk 0:01:14.8]} 1-0

[Event "Late-Titled-Tuesday-Blitz-September-05-2023"]
[Site "Chess.com"]
[Date "2023.09.05"]
[Round "2"]
[White "Fengwi"]
[Black "bascheyaro"]
[Result "0-1"]
[WhiteElo "2423"]
[BlackElo "2804"]
[TimeControl "180+1"]
[EndTime "14:17:17 PDT"]
[Termination "bascheyaro won by resignation"]

1. Nf3 {[%clk 0:03:00.9]} 1... d5 {[%clk 0:03:00]} 2. b3 {[%clk 0:03:00.4]} 2...
Nf6 {[%clk 0:03:00.6]} 3. Bb2 {[%clk 0:02:56.1]} 3... Bf5 {[%clk 0:03:00.8]} 4.
g3 {[%clk 0:02:54.6]} 4... c5 {[%clk 0:03:01]} 5. Bg2 {[%clk 0:02:50.8]} 5...
Nc6 {[%clk 0:03:01.4]} 6. O-O {[%clk 0:02:50.1]} 6... e6 {[%clk 0:03:01.8]} 7.
d3 {[%clk 0:02:46.4]} 7... Be7 {[%clk 0:03:01.8]} 8. Nbd2 {[%clk 0:02:46.9]}
8... O-O {[%clk 0:03:01.9]} 9. Ne5 {[%clk 0:02:38.7]} 9... Nxe5 {[%clk
0:02:53.2]} 10. Bxe5 {[%clk 0:02:39.6]} 10... Bg6 {[%clk 0:02:53.6]} 11. e4
{[%clk 0:02:09.3]} 11... Qd7 {[%clk 0:02:49.8]} 12. Qe2 {[%clk 0:01:59.2]} 12...
Bh5 {[%clk 0:02:45.5]} 13. f3 {[%clk 0:01:52.3]} 13... Rfd8 {[%clk 0:02:43.4]}
14. Rad1 {[%clk 0:01:49.2]} 14... h6 {[%clk 0:02:30.4]} 15. g4 {[%clk
0:01:44.3]} 15... Bg6 {[%clk 0:02:30.4]} 16. f4 {[%clk 0:01:43]} 16... b5 {[%clk
0:02:00.8]} 17. f5 {[%clk 0:01:24.5]} 17... exf5 {[%clk 0:02:00.5]} 18. exf5
{[%clk 0:01:18.2]} 18... Bh7 {[%clk 0:02:00.9]} 19. h4 {[%clk 0:01:11.1]} 19...
Ne8 {[%clk 0:01:58.1]} 20. Qf2 {[%clk 0:01:00.7]} 20... Rac8 {[%clk 0:01:54.1]}
21. Qg3 {[%clk 0:00:59.1]} 21... f6 {[%clk 0:01:49.3]} 22. Bf4 {[%clk
0:00:57.3]} 22... Kf8 {[%clk 0:01:49.1]} 23. c4 {[%clk 0:00:48.4]} 23... Bg8
{[%clk 0:01:46.2]} 24. g5 {[%clk 0:00:43.4]} 24... hxg5 {[%clk 0:01:45.9]} 25.
hxg5 {[%clk 0:00:43.2]} 25... fxg5 {[%clk 0:01:46.4]} 26. Bxg5 {[%clk
0:00:40.5]} 26... Bxg5 {[%clk 0:01:46.7]} 27. Qxg5 {[%clk 0:00:40.6]} 27... Nf6
{[%clk 0:01:47.2]} 28. Nf3 {[%clk 0:00:40]} 28... Qd6 {[%clk 0:01:42.9]} 29. Nh4
{[%clk 0:00:38.1]} 29... Bf7 {[%clk 0:01:42.5]} 30. Ng6+ {[%clk 0:00:37]} 30...
Bxg6 {[%clk 0:01:19.5]} 31. fxg6 {[%clk 0:00:37.2]} 31... dxc4 {[%clk
0:01:20.1]} 32. dxc4 {[%clk 0:00:22]} 32... Qxd1 {[%clk 0:01:19.3]} 33. Rxd1
{[%clk 0:00:22.9]} 33... Rxd1+ {[%clk 0:01:19.5]} 34. Kh2 {[%clk 0:00:23.4]}
34... bxc4 {[%clk 0:01:10]} 35. Qf5 {[%clk 0:00:23.3]} 35... Rc7 {[%clk
0:00:44.4]} 36. Qe5 {[%clk 0:00:22.9]} 36... Rdd7 {[%clk 0:00:37.9]} 37. bxc4
{[%clk 0:00:22]} 37... Ng4+ {[%clk 0:00:36.3]} 0-1

[Event "Late-Titled-Tuesday-Blitz-September-05-2023"]
[Site "Chess.com"]
[Date "2023.09.05"]
[Round "2"]
[White "cande_francisco"]
[Black "ContrVersia"]
[Result "0-1"]
[WhiteElo "2558"]
[BlackElo "2911"]
[TimeControl "180+1"]
[EndTime "14:17:21 PDT"]
[Termination "ContrVersia won by resignation"]

1. e4 {[%clk 0:02:59.6]} 1... c5 {[%clk 0:02:59.8]} 2. Nf3 {[%clk 0:02:59.9]}
2... a6 {[%clk 0:03:00]} 3. c3 {[%clk 0:02:58.2]} 3... d5 {[%clk 0:03:00]} 4.
exd5 {[%clk 0:02:59.1]} 4... Qxd5 {[%clk 0:03:00.6]} 5. d4 {[%clk 0:03:00]} 5...
Bg4 {[%clk 0:03:01]} 6. Be2 {[%clk 0:02:59.8]} 6... Nf6 {[%clk 0:03:01]} 7. h3
{[%clk 0:02:52.9]} 7... Bh5 {[%clk 0:03:00.8]} 8. c4 {[%clk 0:02:53]} 8... Qd6
{[%clk 0:03:01.1]} 9. d5 {[%clk 0:02:50.3]} 9... e6 {[%clk 0:03:01]} 10. Nc3
{[%clk 0:02:50.9]} 10... exd5 {[%clk 0:03:01]} 11. cxd5 {[%clk 0:02:50.8]} 11...
Be7 {[%clk 0:02:59.9]} 12. O-O {[%clk 0:02:49.8]} 12... O-O {[%clk 0:02:59.9]}
13. Qa4 {[%clk 0:02:38.9]} 13... Nbd7 {[%clk 0:02:41.7]} 14. Bf4 {[%clk
0:02:37.2]} 14... Qb6 {[%clk 0:02:41.8]} 15. Qc2 {[%clk 0:01:59.3]} 15... Bd6
{[%clk 0:02:33.9]} 16. Be3 {[%clk 0:01:47.5]} 16... Rfe8 {[%clk 0:02:29.3]} 17.
Qd2 {[%clk 0:01:38.2]} 17... Qc7 {[%clk 0:02:22.2]} 18. Rac1 {[%clk 0:01:36.1]}
18... b5 {[%clk 0:02:19.4]} 19. a3 {[%clk 0:01:21.4]} 19... c4 {[%clk
0:02:14.6]} 20. b4 {[%clk 0:01:17.4]} 20... Rad8 {[%clk 0:01:48.6]} 21. Nd4
{[%clk 0:00:48.2]} 21... Bxe2 {[%clk 0:01:46.1]} 22. Qxe2 {[%clk 0:00:47.2]}
22... Nb6 {[%clk 0:01:36.8]} 23. Rfd1 {[%clk 0:00:26.9]} 23... Nbxd5 {[%clk
0:01:35]} 24. Nxd5 {[%clk 0:00:24.5]} 24... Nxd5 {[%clk 0:01:34.5]} 25. Nf5
{[%clk 0:00:20.5]} 25... Nxe3 {[%clk 0:01:14.5]} 26. fxe3 {[%clk 0:00:12.9]}
26... Be5 {[%clk 0:01:08.4]} 27. Qg4 {[%clk 0:00:12.9]} 27... Bf6 {[%clk
0:00:53.6]} 28. a4 {[%clk 0:00:10.9]} 28... Kh8 {[%clk 0:00:49.2]} 29. axb5
{[%clk 0:00:10.6]} 29... axb5 {[%clk 0:00:49.7]} 30. Qf3 {[%clk 0:00:06.9]}
30... Qe5 {[%clk 0:00:47.5]} 31. Rxd8 {[%clk 0:00:05]} 31... Rxd8 {[%clk
0:00:47.1]} 32. Ng3 {[%clk 0:00:04.7]} 32... Re8 {[%clk 0:00:37.5]} 33. Re1
{[%clk 0:00:04.7]} 33... Bh4 {[%clk 0:00:37.4]} 0-1

[Event "Late-Titled-Tuesday-Blitz-September-05-2023"]
[Site "Chess.com"]
[Date "2023.09.05"]
[Round "2"]
[White "RIPOL"]
[Black "melissa_guez"]
[Result "1-0"]
[WhiteElo "2409"]
[BlackElo "2033"]
[TimeControl "180+1"]
[EndTime "14:17:21 PDT"]
[Termination "RIPOL won by checkmate"]

1. d4 {[%clk 0:02:58.6]} 1... d5 {[%clk 0:02:58.3]} 2. c4 {[%clk 0:02:57.9]}
2... c6 {[%clk 0:02:58.3]} 3. Nc3 {[%clk 0:02:56.8]} 3... Nf6 {[%clk 0:02:56.7]}
4. cxd5 {[%clk 0:02:56.6]} 4... cxd5 {[%clk 0:02:55.7]} 5. Bf4 {[%clk
0:02:57.1]} 5... Nc6 {[%clk 0:02:45]} 6. e3 {[%clk 0:02:56.7]} 6... a6 {[%clk
0:02:44]} 7. Rc1 {[%clk 0:02:55.8]} 7... e6 {[%clk 0:02:32.1]} 8. Nf3 {[%clk
0:02:45.3]} 8... Bd6 {[%clk 0:02:31.8]} 9. Bg3 {[%clk 0:02:32.1]} 9... O-O
{[%clk 0:02:27.8]} 10. Bd3 {[%clk 0:02:28.9]} 10... Na5 {[%clk 0:01:39.4]} 11.
Ne5 {[%clk 0:02:24.7]} 11... Bxe5 {[%clk 0:01:36.2]} 12. dxe5 {[%clk 0:02:22.9]}
12... Nd7 {[%clk 0:01:31.8]} 13. f4 {[%clk 0:02:09.7]} 13... b5 {[%clk
0:01:28.1]} 14. b3 {[%clk 0:01:55.9]} 14... Bb7 {[%clk 0:01:25.7]} 15. Ne2
{[%clk 0:01:53.9]} 15... Rc8 {[%clk 0:01:11]} 16. Rxc8 {[%clk 0:01:45.3]} 16...
Qxc8 {[%clk 0:01:11.4]} 17. O-O {[%clk 0:01:44.1]} 17... Nc5 {[%clk 0:01:09]}
18. Nd4 {[%clk 0:01:37.7]} 18... Nc6 {[%clk 0:00:38.2]} 19. Bxh7+ {[%clk
0:01:31.5]} 19... Kxh7 {[%clk 0:00:37.6]} 20. Qh5+ {[%clk 0:01:25.5]} 20... Kg8
{[%clk 0:00:37.6]} 21. Nf3 {[%clk 0:01:25.6]} 21... Ne4 {[%clk 0:00:31.3]} 22.
Bh4 {[%clk 0:01:25.4]} 22... Re8 {[%clk 0:00:20]} 23. h3 {[%clk 0:01:04.8]}
23... Ne7 {[%clk 0:00:19.1]} 24. Nh2 {[%clk 0:01:01.8]} 24... Nf5 {[%clk
0:00:13.1]} 25. Ng4 {[%clk 0:00:45.4]} 25... g6 {[%clk 0:00:07.3]} 26. Nh6+
{[%clk 0:00:44.8]} 26... Nxh6 {[%clk 0:00:05.1]} 27. Qxh6 {[%clk 0:00:44.1]}
27... f5 {[%clk 0:00:03.5]} 28. Qxg6+ {[%clk 0:00:42.3]} 28... Kf8 {[%clk
0:00:03.4]} 29. Qh6+ {[%clk 0:00:41]} 29... Kg8 {[%clk 0:00:03.5]} 30. Bf6
{[%clk 0:00:34.9]} 30... Qd7 {[%clk 0:00:03.4]} 31. Qh8+ {[%clk 0:00:31.5]}
31... Kf7 {[%clk 0:00:03.6]} 32. Qg7# {[%clk 0:00:31.5]} 1-0

[Event "Late-Titled-Tuesday-Blitz-September-05-2023"]
[Site "Chess.com"]
[Date "2023.09.05"]
[Round "2"]
[White "whitemirrorninja"]
[Black "GMAkobianSTL"]
[Result "0-1"]
[WhiteElo "2509"]
[BlackElo "2740"]
[TimeControl "180+1"]
[EndTime "14:17:23 PDT"]
[Termination "GMAkobianSTL won by resignation"]

1. d4 {[%clk 0:03:00.9]} 1... e6 {[%clk 0:02:59.4]} 2. e4 {[%clk 0:02:56.6]}
2... d5 {[%clk 0:02:58.9]} 3. Nd2 {[%clk 0:02:56]} 3... a6 {[%clk 0:02:57.8]} 4.
Ngf3 {[%clk 0:02:53.8]} 4... c5 {[%clk 0:02:57.8]} 5. c3 {[%clk 0:02:46.9]} 5...
Nc6 {[%clk 0:02:56.8]} 6. exd5 {[%clk 0:02:41.7]} 6... exd5 {[%clk 0:02:56.3]}
7. dxc5 {[%clk 0:02:37.6]} 7... Bxc5 {[%clk 0:02:55.7]} 8. Nb3 {[%clk
0:02:38.2]} 8... Bb6 {[%clk 0:02:54.6]} 9. Nbd4 {[%clk 0:02:37.3]} 9... Nf6
{[%clk 0:02:53.7]} 10. Be2 {[%clk 0:02:37.7]} 10... O-O {[%clk 0:02:53.1]} 11.
O-O {[%clk 0:02:38.3]} 11... Ne4 {[%clk 0:02:53.7]} 12. Be3 {[%clk 0:02:37]}
12... Re8 {[%clk 0:02:53.1]} 13. c4 {[%clk 0:02:32.6]} 13... dxc4 {[%clk
0:02:29]} 14. Nxc6 {[%clk 0:02:14.5]} 14... Qxd1 {[%clk 0:02:19.4]} 15. Raxd1
{[%clk 0:01:46.9]} 15... Bxe3 {[%clk 0:02:17.6]} 16. Ne7+ {[%clk 0:01:38.8]}
16... Kf8 {[%clk 0:02:16]} 17. Nxc8 {[%clk 0:01:38.3]} 17... Nxf2 {[%clk
0:02:06]} 18. Rxf2 {[%clk 0:01:34.5]} 18... Raxc8 {[%clk 0:02:05.6]} 19. Kf1
{[%clk 0:01:32.9]} 19... b5 {[%clk 0:02:02]} 20. Nd4 {[%clk 0:01:10.7]} 20...
Bxf2 {[%clk 0:01:40.7]} 21. Kxf2 {[%clk 0:01:11.6]} 21... Rcd8 {[%clk
0:01:35.8]} 22. Nc6 {[%clk 0:01:06.8]} 22... Rxd1 {[%clk 0:01:33.2]} 23. Bxd1
{[%clk 0:01:07.7]} 23... Re6 {[%clk 0:01:31.8]} 24. Bf3 {[%clk 0:01:05.1]} 24...
g6 {[%clk 0:01:21.7]} 25. Nd4 {[%clk 0:01:03.3]} 25... Rd6 {[%clk 0:01:16.2]}
26. Ke3 {[%clk 0:01:03.7]} 26... f5 {[%clk 0:01:15.4]} 27. g4 {[%clk 0:00:54.8]}
27... f4+ {[%clk 0:01:06.1]} 28. Ke4 {[%clk 0:00:54.7]} 28... g5 {[%clk
0:01:06.3]} 29. Ke5 {[%clk 0:00:53.2]} 29... Rh6 {[%clk 0:00:56.3]} 30. Ne6+
{[%clk 0:00:44.2]} 30... Ke7 {[%clk 0:00:54.8]} 31. Nxg5 {[%clk 0:00:35.9]}
31... Rxh2 {[%clk 0:00:53.4]} 32. Bb7 {[%clk 0:00:30.7]} 32... Rxb2 {[%clk
0:00:47.5]} 33. Nxh7 {[%clk 0:00:27.5]} 33... c3 {[%clk 0:00:46.5]} 34. Be4
{[%clk 0:00:25.1]} 34... c2 {[%clk 0:00:44.5]} 35. Bxc2 {[%clk 0:00:25.7]} 35...
Rxc2 {[%clk 0:00:45.1]} 36. Kxf4 {[%clk 0:00:20.7]} 36... Rxa2 {[%clk 0:00:45]}
37. g5 {[%clk 0:00:21.1]} 37... Rh2 {[%clk 0:00:43.2]} 38. Nf6 {[%clk
0:00:21.4]} 38... Rf2+ {[%clk 0:00:43.3]} 39. Ke5 {[%clk 0:00:21.2]} 39... Rxf6
{[%clk 0:00:43.2]} 40. gxf6+ {[%clk 0:00:21.7]} 40... Kf7 {[%clk 0:00:43.8]} 41.
Kf5 {[%clk 0:00:21.3]} 41... b4 {[%clk 0:00:43.5]} 42. Ke5 {[%clk 0:00:22]}
42... b3 {[%clk 0:00:43.7]} 0-1

[Event "Late-Titled-Tuesday-Blitz-September-05-2023"]
[Site "Chess.com"]
[Date "2023.09.05"]
[Round "2"]
[White "DenizSeyhanoglu1"]
[Black "ybothg"]
[Result "0-1"]
[WhiteElo "2310"]
[BlackElo "2507"]
[TimeControl "180+1"]
[EndTime "14:17:23 PDT"]
[Termination "ybothg won by resignation"]

1. e4 {[%clk 0:03:00.9]} 1... c5 {[%clk 0:03:00.3]} 2. Nf3 {[%clk 0:02:59.9]}
2... e6 {[%clk 0:02:59.8]} 3. d4 {[%clk 0:03:00.3]} 3... cxd4 {[%clk 0:03:00.7]}
4. Nxd4 {[%clk 0:03:00.7]} 4... Nf6 {[%clk 0:03:01.5]} 5. Nc3 {[%clk 0:03:00.1]}
5... Nc6 {[%clk 0:03:02.2]} 6. Ndb5 {[%clk 0:02:57]} 6... Bb4 {[%clk 0:03:02.3]}
7. a3 {[%clk 0:02:56.4]} 7... Bxc3+ {[%clk 0:03:02.5]} 8. Nxc3 {[%clk
0:02:57.3]} 8... d5 {[%clk 0:03:03.1]} 9. exd5 {[%clk 0:02:56.3]} 9... exd5
{[%clk 0:03:04]} 10. Bd3 {[%clk 0:02:54.9]} 10... O-O {[%clk 0:03:04.6]} 11. O-O
{[%clk 0:02:53.4]} 11... d4 {[%clk 0:03:05.3]} 12. Ne2 {[%clk 0:02:52.8]} 12...
Bg4 {[%clk 0:03:05.9]} 13. Qd2 {[%clk 0:02:52.9]} 13... Re8 {[%clk 0:03:05.5]}
14. b4 {[%clk 0:02:52]} 14... Bxe2 {[%clk 0:03:01.5]} 15. Bxe2 {[%clk
0:02:51.6]} 15... Ne4 {[%clk 0:03:02.4]} 16. Qd3 {[%clk 0:02:47.5]} 16... Nc3
{[%clk 0:03:01]} 17. Bg4 {[%clk 0:02:44.1]} 17... Ne5 {[%clk 0:02:58.4]} 18. Qg3
{[%clk 0:02:41.6]} 18... f5 {[%clk 0:02:40.9]} 19. Bf3 {[%clk 0:02:27.9]} 19...
Rc8 {[%clk 0:02:21.6]} 20. Bg5 {[%clk 0:02:26.5]} 20... Qb6 {[%clk 0:02:15.2]}
21. Rfe1 {[%clk 0:02:22.7]} 21... Qb5 {[%clk 0:01:41.6]} 22. Bf4 {[%clk
0:02:04.3]} 22... Ng6 {[%clk 0:01:25.9]} 23. Bd2 {[%clk 0:01:55.5]} 23... Ne4
{[%clk 0:01:19.4]} 24. Bxe4 {[%clk 0:01:50.3]} 24... fxe4 {[%clk 0:01:20.3]} 25.
Rac1 {[%clk 0:01:38.1]} 25... Qd5 {[%clk 0:01:12.5]} 26. c3 {[%clk 0:01:30.5]}
26... d3 {[%clk 0:00:55.7]} 27. h4 {[%clk 0:01:27]} 27... Ne5 {[%clk 0:00:45.6]}
28. Be3 {[%clk 0:01:13.5]} 28... d2 {[%clk 0:00:41.2]} 29. Bxd2 {[%clk
0:01:05.4]} 29... Qxd2 {[%clk 0:00:42.1]} 30. Rcd1 {[%clk 0:01:05.5]} 30... Qxc3
{[%clk 0:00:41.5]} 31. Re3 {[%clk 0:01:04.9]} 31... Nd3 {[%clk 0:00:36.1]} 32.
Qd6 {[%clk 0:00:59.2]} 32... Qc2 {[%clk 0:00:26.7]} 33. Qd5+ {[%clk 0:00:56.5]}
33... Kh8 {[%clk 0:00:26.9]} 34. Rf1 {[%clk 0:00:49.7]} 34... Rcd8 {[%clk
0:00:27.2]} 35. Rxe4 {[%clk 0:00:48.6]} 35... Nf4 {[%clk 0:00:14.7]} 36. Qc4
{[%clk 0:00:31.2]} 36... Qxe4 {[%clk 0:00:14.4]} 0-1

[Event "Late-Titled-Tuesday-Blitz-September-05-2023"]
[Site "Chess.com"]
[Date "2023.09.05"]
[Round "2"]
[White "lionheart95"]
[Black "Sanan_Sjugirov"]
[Result "0-1"]
[WhiteElo "2546"]
[BlackElo "2893"]
[TimeControl "180+1"]
[EndTime "14:17:25 PDT"]
[Termination "Sanan_Sjugirov won by resignation"]

1. e4 {[%clk 0:03:00.9]} 1... c5 {[%clk 0:02:57.1]} 2. Nf3 {[%clk 0:02:59.9]}
2... d6 {[%clk 0:02:57.4]} 3. d4 {[%clk 0:02:57]} 3... cxd4 {[%clk 0:02:57.5]}
4. Nxd4 {[%clk 0:02:57.8]} 4... Nf6 {[%clk 0:02:57.9]} 5. Nc3 {[%clk 0:02:58.1]}
5... a6 {[%clk 0:02:58.5]} 6. g3 {[%clk 0:02:57.1]} 6... e5 {[%clk 0:02:57.5]}
7. Nb3 {[%clk 0:02:57.6]} 7... Be7 {[%clk 0:02:56.5]} 8. Bg5 {[%clk 0:02:57.7]}
8... Nbd7 {[%clk 0:02:52.7]} 9. Qd2 {[%clk 0:02:49.2]} 9... b5 {[%clk
0:02:50.3]} 10. Bxf6 {[%clk 0:02:16.4]} 10... Nxf6 {[%clk 0:02:50]} 11. Bg2
{[%clk 0:02:16.1]} 11... Bb7 {[%clk 0:02:47.3]} 12. O-O {[%clk 0:02:10.8]} 12...
O-O {[%clk 0:02:39.1]} 13. a4 {[%clk 0:02:05.3]} 13... b4 {[%clk 0:02:38.4]} 14.
Nd5 {[%clk 0:02:05.1]} 14... Nxd5 {[%clk 0:02:35.8]} 15. exd5 {[%clk 0:02:05]}
15... a5 {[%clk 0:02:36.1]} 16. c3 {[%clk 0:01:35.3]} 16... bxc3 {[%clk
0:02:35.1]} 17. Qxc3 {[%clk 0:01:34.3]} 17... Qb6 {[%clk 0:02:35]} 18. Nd2
{[%clk 0:01:25.9]} 18... Ba6 {[%clk 0:02:26.5]} 19. Rfc1 {[%clk 0:01:16]} 19...
Rfc8 {[%clk 0:02:24.1]} 20. Qb3 {[%clk 0:01:15.4]} 20... Rcb8 {[%clk 0:01:52.6]}
21. Rc3 {[%clk 0:00:42]} 21... Qd8 {[%clk 0:00:58.1]} 22. Qc2 {[%clk 0:00:39.5]}
22... g6 {[%clk 0:00:58.7]} 23. Rc1 {[%clk 0:00:24]} 23... Bc8 {[%clk 0:00:54]}
24. b3 {[%clk 0:00:20.4]} 24... Bf5 {[%clk 0:00:53]} 25. Be4 {[%clk 0:00:18.8]}
25... Bd7 {[%clk 0:00:52.6]} 26. Bd3 {[%clk 0:00:16.2]} 26... Bg5 {[%clk
0:00:50.7]} 27. h4 {[%clk 0:00:12.9]} 27... Bh6 {[%clk 0:00:49.4]} 28. Qd1
{[%clk 0:00:12.5]} 28... Rc8 {[%clk 0:00:46.2]} 29. Rxc8 {[%clk 0:00:10.6]}
29... Rxc8 {[%clk 0:00:46.3]} 30. Rxc8 {[%clk 0:00:11]} 30... Qxc8 {[%clk
0:00:46.7]} 31. Nc4 {[%clk 0:00:11.5]} 31... Qc5 {[%clk 0:00:44.5]} 32. Qe1
{[%clk 0:00:12]} 32... Qxd5 {[%clk 0:00:43.6]} 33. Be4 {[%clk 0:00:12.3]} 33...
Qd4 {[%clk 0:00:42.7]} 34. Bg2 {[%clk 0:00:10.5]} 34... Be6 {[%clk 0:00:40.4]}
35. Nxa5 {[%clk 0:00:09.8]} 35... Bd2 {[%clk 0:00:39.9]} 0-1

[Event "Late-Titled-Tuesday-Blitz-September-05-2023"]
[Site "Chess.com"]
[Date "2023.09.05"]
[Round "2"]
[White "TanitoluwaAps116"]
[Black "Qvalda"]
[Result "1-0"]
[WhiteElo "2704"]
[BlackElo "2377"]
[TimeControl "180+1"]
[EndTime "14:17:27 PDT"]
[Termination "TanitoluwaAps116 won on time"]

1. e4 {[%clk 0:03:00.9]} 1... e6 {[%clk 0:02:55.7]} 2. d4 {[%clk 0:02:57]} 2...
d5 {[%clk 0:02:56.6]} 3. exd5 {[%clk 0:02:57.6]} 3... exd5 {[%clk 0:02:56.2]} 4.
Nf3 {[%clk 0:02:57.3]} 4... Bd6 {[%clk 0:02:55.4]} 5. c4 {[%clk 0:02:55.2]} 5...
dxc4 {[%clk 0:02:54.2]} 6. Bxc4 {[%clk 0:02:55.3]} 6... Nf6 {[%clk 0:02:54.7]}
7. Qe2+ {[%clk 0:02:54.5]} 7... Qe7 {[%clk 0:02:54.1]} 8. Qxe7+ {[%clk
0:02:54.5]} 8... Bxe7 {[%clk 0:02:55]} 9. Nc3 {[%clk 0:02:54.2]} 9... O-O {[%clk
0:02:52]} 10. Bf4 {[%clk 0:02:52.1]} 10... c6 {[%clk 0:02:49]} 11. O-O {[%clk
0:02:50]} 11... Nbd7 {[%clk 0:02:48.3]} 12. Rfe1 {[%clk 0:02:49.3]} 12... Nb6
{[%clk 0:02:48.5]} 13. Bb3 {[%clk 0:02:41.6]} 13... Bb4 {[%clk 0:02:42.8]} 14.
a3 {[%clk 0:02:39.9]} 14... Bxc3 {[%clk 0:02:42.3]} 15. bxc3 {[%clk 0:02:40.8]}
15... Bf5 {[%clk 0:02:39.1]} 16. c4 {[%clk 0:02:36]} 16... Rfe8 {[%clk
0:02:32.7]} 17. Ne5 {[%clk 0:02:32.9]} 17... Be6 {[%clk 0:02:30.5]} 18. Rac1
{[%clk 0:02:25.7]} 18... Nfd7 {[%clk 0:02:22.8]} 19. Nxd7 {[%clk 0:02:21.2]}
19... Bxd7 {[%clk 0:02:20.7]} 20. f3 {[%clk 0:02:18.4]} 20... Rxe1+ {[%clk
0:02:19.4]} 21. Rxe1 {[%clk 0:02:19.3]} 21... Re8 {[%clk 0:02:19.3]} 22. Rxe8+
{[%clk 0:02:14.1]} 22... Bxe8 {[%clk 0:02:20.2]} 23. Bb8 {[%clk 0:02:13.6]}
23... Nc8 {[%clk 0:02:16.9]} 24. d5 {[%clk 0:02:06.2]} 24... cxd5 {[%clk
0:02:16.3]} 25. cxd5 {[%clk 0:02:07.1]} 25... Kf8 {[%clk 0:02:13.2]} 26. d6
{[%clk 0:02:01.7]} 26... Bc6 {[%clk 0:02:10.8]} 27. Kf2 {[%clk 0:01:56.3]} 27...
Ke8 {[%clk 0:02:10.3]} 28. Ke3 {[%clk 0:01:56]} 28... a6 {[%clk 0:02:04.3]} 29.
Kd4 {[%clk 0:01:55.6]} 29... Nb6 {[%clk 0:02:01.5]} 30. Bc7 {[%clk 0:01:52.8]}
30... Nd7 {[%clk 0:01:58.9]} 31. a4 {[%clk 0:01:49]} 31... Nf8 {[%clk
0:01:55.9]} 32. a5 {[%clk 0:01:41.5]} 32... Ne6+ {[%clk 0:01:53]} 33. Ke5 {[%clk
0:01:33.5]} 33... Nxc7 {[%clk 0:01:42.2]} 34. dxc7 {[%clk 0:01:34.4]} 34... Kd7
{[%clk 0:01:42.1]} 35. c8=Q+ {[%clk 0:01:25.2]} 35... Kxc8 {[%clk 0:01:40.4]}
36. Kd6 {[%clk 0:01:25.7]} 36... Kd8 {[%clk 0:01:04.3]} 37. Bxf7 {[%clk
0:01:21.8]} 37... Bb5 {[%clk 0:00:59.6]} 38. Bd5 {[%clk 0:01:20.5]} 38... Kc8
{[%clk 0:00:41.5]} 39. f4 {[%clk 0:01:14.5]} 39... g6 {[%clk 0:00:28.9]} 40. g4
{[%clk 0:01:12.4]} 40... Be2 {[%clk 0:00:21.5]} 41. f5 {[%clk 0:01:10.3]} 41...
gxf5 {[%clk 0:00:18.3]} 42. gxf5 {[%clk 0:01:11.2]} 42... Bh5 {[%clk 0:00:12.9]}
43. f6 {[%clk 0:01:11.1]} 43... b6 {[%clk 0:00:02.6]} 44. axb6 {[%clk
0:01:09.9]} 44... a5 {[%clk 0:00:03.2]} 45. f7 {[%clk 0:01:04.9]} 45... Bxf7
{[%clk 0:00:02.4]} 46. Bxf7 {[%clk 0:01:05.8]} 46... Kb7 {[%clk 0:00:02.3]} 47.
Kc5 {[%clk 0:01:05]} 47... a4 {[%clk 0:00:02.9]} 48. Bd5+ {[%clk 0:01:03.7]}
48... Kb8 {[%clk 0:00:02.3]} 49. Kb4 {[%clk 0:01:03.9]} 49... a3 {[%clk
0:00:01.5]} 50. Kxa3 {[%clk 0:01:03.8]} 1-0